fUST/lending_fUST_20250514
["ID","MTS","AMOUNT","RATE_DAILY","PERIOD"]
[360941652,1747159853498,-400.0,0.00013972,2]
[360941653,1747159853509,-916.16,0.00013972,2]
[360941654,1747159853521,-1775.94,0.00013972,2]
[360941655,1747159853531,-400.0,0.00013972,2]
[360941656,1747159853543,-400.0,0.00013972,2]
[360941657,1747159853554,-1885.47,0.00013972,2]
[360941658,1747159853565,-732.32,0.00013972,2]
[360941659,1747159853576,-15817.69,0.00013972,2]
[360941660,1747159853586,-832.05,0.00013972,2]
[360941661,1747159853596,-400.0,0.00013972,2]
[360941662,1747159853608,-1273.55,0.00013972,2]
[360941663,1747159853619,-400.0,0.00013972,2]
[360941664,1747159853629,-400.0,0.00013972,2]
[360941665,1747159853640,-400.0,0.00013972,2]
[360941666,1747159853650,-514.61,0.00013972,2]
[360941667,1747159853662,-400.0,0.00013972,2]
[360941668,1747159853679,-400.0,0.00013972,2]
[360941669,1747159853691,-400.0,0.00013972,2]
[360941670,1747159853702,-400.0,0.00013972,2]
[360941671,1747159853714,-455.96,0.00013972,2]
[360941672,1747159853726,-2197.57,0.00013972,2]
[360941673,1747159853737,-400.0,0.00013972,2]
[360941674,1747159853750,-641.84,0.00013972,2]
[360941675,1747159853761,-4056.77,0.00013972,2]
[360941676,1747159853773,-400.0,0.00013972,2]
[360941677,1747159853785,-1989.16,0.00013972,2]
[360941678,1747159853796,-400.0,0.00013972,2]
[360941679,1747159853807,-1752.9,0.00013972,2]
[360941680,1747159853817,-756.84,0.00013972,2]
[360941681,1747159853828,-400.0,0.00013972,2]
[360941682,1747159853839,-440.08,0.00013972,2]
[360941683,1747159853849,-5880.29,0.00013972,2]
[360941684,1747159853861,-400.0,0.00013972,2]
[360941685,1747159853872,-400.0,0.00013972,2]
[360941686,1747159853883,-504.89037922,0.00013972,2]
[360941687,1747159853894,-634.39,0.00013972,2]
[360941688,1747159853904,-400.0,0.00013972,2]
[360941689,1747159853915,-7736.19,0.00013972,2]
[360941690,1747159853926,-400.0,0.00013972,2]
[360941691,1747159853937,-400.62453092,0.00013972,2]
[360941692,1747159853948,-20932.25,0.00013972,2]
[360941693,1747159853960,-1765.99,0.00013972,2]
[360941694,1747159853970,-400.0,0.00013972,2]
[360941695,1747159853980,-599.13,0.00013972,2]
[360941696,1747159853990,-400.0,0.00013972,2]
[360941697,1747159854001,-615.78,0.00013972,2]
[360941698,1747159854011,-400.0,0.00013972,2]
[360941699,1747159854021,-400.0,0.00013972,2]
[360941700,1747159854032,-400.47497841,0.00013972,2]
[360941701,1747159854044,-23428.24,0.00013972,2]
[360941702,1747159854054,-400.0,0.00013972,2]
[360941703,1747159854065,-1428.82,0.00013972,2]
[360941704,1747159854075,-688.9,0.00013972,2]
[360941705,1747159854086,-13083.12,0.00013972,2]
[360941706,1747159854096,-1410.41,0.00013972,2]
[360941707,1747159854107,-1347.49,0.00013972,2]
[360941708,1747159854117,-593.62,0.00013972,2]
[360941709,1747159854128,-405.63475258,0.00013972,2]
[360941710,1747159854139,-663.49,0.00013972,2]
[360941711,1747159854150,-1050.96,0.00013972,2]
[360941712,1747159854163,-831.62,0.00013972,2]
[360941713,1747159854174,-400.0,0.00013972,2]
[360941714,1747159854184,-400.0,0.00013972,2]
[360941715,1747159854195,-546.23,0.00013972,2]
[360941716,1747159854205,-400.0,0.00013972,2]
[360941717,1747159854216,-433.57,0.00013972,2]
[360941718,1747159854227,-441.14,0.00013972,2]
[360941719,1747159854239,-2959.47,0.00013972,2]
[360941720,1747159854249,-400.0,0.00013972,2]
[360941721,1747159854259,-486.63,0.00013972,2]
[360941722,1747159854269,-400.0,0.00013972,2]
[360941723,1747159854279,-400.0,0.00013972,2]
[360941724,1747159854292,-400.0,0.00013972,2]
[360941725,1747159854302,-1326.89,0.00013972,2]
[360941726,1747159854313,-400.0,0.00013972,2]
[360941727,1747159854325,-1135.0,0.00013972,2]
[360941728,1747159854335,-1542.15,0.00013972,2]
[360941729,1747159854346,-2161.0,0.00013972,2]
[360941730,1747159854356,-505.59,0.00013972,2]
[360941731,1747159854367,-4995.44,0.00013972,2]
[360941732,1747159854378,-196.86169645,0.00013972,2]
[360941733,1747159854388,-653.01,0.00013972,2]
[360941734,1747159854399,-400.0,0.00013972,2]
[360941735,1747159854409,-481.95,0.00013972,2]
[360941736,1747159854420,-400.0,0.00013972,2]
[360941737,1747159854431,-3505.96,0.00013972,2]
[360941738,1747159854443,-549.77,0.00013972,2]
[360941739,1747159854455,-292.8443511,0.00013972,2]
[360941740,1747159854465,-400.0,0.00013972,2]
[360941741,1747159854476,-400.0,0.00013972,2]
[360941742,1747159854487,-1726.34,0.00013972,2]
[360941743,1747159854498,-518.7,0.00013972,2]
[360941744,1747159854508,-400.0,0.00013972,2]
[360941745,1747159854519,-1351.65,0.00013972,2]
[360941746,1747159854530,-400.0,0.00013972,2]
[360941747,1747159854541,-400.0,0.00013972,2]
[360941748,1747159854552,-692.01,0.00013972,2]
[360941749,1747159854563,-1311.68,0.00013972,2]
[360941750,1747159854574,-3459.59,0.00013972,2]
[360941751,1747159854584,-400.0,0.00013972,2]
[360941752,1747159854595,-400.0,0.00013972,2]
[360941753,1747159854605,-400.0,0.00013972,2]
[360941754,1747159854616,-400.0,0.00013972,2]
[360941755,1747159854627,-494.87,0.00013972,2]
[360941756,1747159854637,-400.0,0.00013972,2]
[360941757,1747159854648,-406.59354804,0.00013972,2]
[360941758,1747159854658,-4076.3,0.00013972,2]
[360941759,1747159854669,-400.0,0.00013972,2]
[360941760,1747159854680,-400.0,0.00013972,2]
[360941761,1747159854693,-1653.61,0.00013972,2]
[360941762,1747159854703,-400.57,0.00013972,2]
[360941763,1747159854715,-874.49,0.00013972,2]
[360941764,1747159854726,-535.2,0.00013972,2]
[360941765,1747159854737,-400.0,0.00013972,2]
[360941766,1747159854748,-400.0,0.00013972,2]
[360941767,1747159854759,-3955.32,0.00013972,2]
[360941768,1747159854770,-400.0,0.00013972,2]
[360941769,1747159854782,-3408.35,0.00013972,2]
[360941770,1747159854793,-400.0,0.00013972,2]
[360941771,1747159854804,-418.61,0.00013972,2]
[360941772,1747159854815,-652.99,0.00013972,2]
[360941773,1747159854826,-541.17,0.00013972,2]
[360941774,1747159854836,-400.0,0.00013972,2]
[360941775,1747159854846,-2657.93,0.00013972,2]
[360941776,1747159854858,-400.0,0.00013972,2]
[360941777,1747159854869,-400.0,0.00013972,2]
[360941778,1747159854881,-400.0,0.00013972,2]
[360941779,1747159854891,-1023.89,0.00013972,2]
[360941780,1747159854903,-400.0,0.00013972,2]
[360941781,1747159854915,-3509.83,0.00013972,2]
[360941782,1747159854926,-2643.97,0.00013972,2]
[360941783,1747159854941,-1010.79,0.00013972,2]
[360941784,1747159854953,-400.0,0.00013972,2]
[360941785,1747159854965,-400.0,0.00013972,2]
[360941786,1747159854976,-500.95224761,0.00013972,2]
[360941787,1747159854986,-973.69,0.00013972,2]
[360941788,1747159854997,-2694.39,0.00013972,2]
[360941789,1747159855008,-2043.17,0.00013972,2]
[360941790,1747159855018,-848.93,0.00013972,2]
[360941791,1747159855031,-5195.4,0.00013972,2]
[360941792,1747159855041,-2453.84,0.00013972,2]
[360941793,1747159855052,-400.0,0.00013972,2]
[360941794,1747159855063,-187.40765434,0.00013972,2]
[360941795,1747159855074,-471.73,0.00013972,2]
[360941796,1747159855084,-4078.63,0.00013972,2]
[360941797,1747159855094,-400.0,0.00013972,2]
[360941798,1747159855104,-2324.77,0.00013972,2]
[360941799,1747159855114,-2553.04,0.00013972,2]
[360941800,1747159855125,-400.0,0.00013972,2]
[360941801,1747159855136,-277.62882992,0.00013972,2]
[360941802,1747159855148,-2154.98,0.00013972,2]
[360941803,1747159855160,-400.0,0.00013972,2]
[360941804,1747159855170,-400.0,0.00013972,2]
[360941805,1747159855180,-400.0,0.00013972,2]
[360941806,1747159855201,-433.77,0.00013972,2]
[360941807,1747159855216,-506.97,0.00013972,2]
[360941808,1747159855228,-400.0,0.00013972,2]
[360941809,1747159855239,-4140.38,0.00013972,2]
[360941810,1747159855250,-633.52,0.00013972,2]
[360941811,1747159855262,-400.0,0.00013972,2]
[360941812,1747159855273,-400.0,0.00013972,2]
[360941813,1747159855284,-400.0,0.00013972,2]
[360941814,1747159855295,-1981.79,0.00013972,2]
[360941815,1747159855307,-13199.24,0.00013972,2]
[360941816,1747159855463,-400.0,0.00013972,2]
[360941817,1747159855473,-400.0,0.00013972,2]
[360941818,1747159855482,-400.0,0.00013972,2]
[360941819,1747159855492,-400.0,0.00013972,2]
[360941820,1747159855503,-4586.36,0.00013972,2]
[360941821,1747159855512,-638.06,0.00013972,2]
[360941822,1747159855522,-400.0,0.00013972,2]
[360941823,1747159855531,-508.06,0.00013972,2]
[360941824,1747159855541,-569.23,0.00013972,2]
[360941825,1747159855551,-400.0,0.00013972,2]
[360941826,1747159855561,-400.0,0.00013972,2]
[360941827,1747159855571,-6237.4,0.00013972,2]
[360941828,1747159855581,-400.0,0.00013972,2]
[360941829,1747159855591,-400.0,0.00013972,2]
[360941830,1747159855601,-3299.16,0.00013972,2]
[360941831,1747159855610,-400.0,0.00013972,2]
[360941832,1747159855620,-400.0,0.00013972,2]
[360941833,1747159855630,-400.0,0.00013972,2]
[360941834,1747159855639,-300.0,0.00013972,2]
[360941835,1747159855649,-446.89,0.00013972,2]
[360941836,1747159855659,-763.65,0.00013972,2]
[360941837,1747159855668,-400.0,0.00013972,2]
[360941838,1747159855678,-444.97,0.00013972,2]
[360941839,1747159855688,-425.56,0.00013972,2]
[360941840,1747159855698,-448.73,0.00013972,2]
[360941841,1747159855707,-2386.35,0.00013972,2]
[360941842,1747159855719,-400.39350383,0.00013972,2]
[360941843,1747159855730,-803.45,0.00013972,2]
[360941844,1747159855740,-400.0,0.00013972,2]
[360941845,1747159855750,-256.8820146,0.00013972,2]
[360941846,1747159855760,-500.0,0.00013972,2]
[360941847,1747159855775,-400.0,0.00013972,2]
[360941848,1747159855786,-1573.26,0.00013972,2]
[360941849,1747159855797,-695.43,0.00013972,2]
[360941850,1747159855807,-538.28,0.00013972,2]
[360941851,1747159855817,-431.2,0.00013972,2]
[360941852,1747159855827,-400.0,0.00013972,2]
[360941853,1747159855838,-400.0,0.00013972,2]
[360941854,1747159855848,-417.72,0.00013972,2]
[360941855,1747159855857,-482.79,0.00013972,2]
[360941856,1747159855867,-1117.03,0.00013972,2]
[360941857,1747159855877,-400.0,0.00013972,2]
[360941858,1747159855887,-487.69,0.00013972,2]
[360941859,1747159855897,-584.24,0.00013972,2]
[360941860,1747159855908,-423.52,0.00013972,2]
[360941861,1747159855918,-517.69,0.00013972,2]
[360941862,1747159855928,-2216.45,0.00013972,2]
[360941863,1747159855939,-817.99,0.00013972,2]
[360941864,1747159855949,-400.0,0.00013972,2]
[360941865,1747159855959,-400.0,0.00013972,2]
[360941866,1747159855970,-2534.24,0.00013972,2]
[360941867,1747159855981,-416.92,0.00013972,2]
[360941868,1747159855990,-2562.31,0.00013972,2]
[360941869,1747159856001,-1020.07,0.00013972,2]
[360941870,1747159856011,-1202.11,0.00013972,2]
[360941871,1747159856022,-648.31,0.00013972,2]
[360941872,1747159856033,-400.0,0.00013972,2]
[360941873,1747159856043,-615.64,0.00013972,2]
[360941874,1747159856053,-9444.27,0.00013972,2]
[360941875,1747159856063,-400.0,0.00013972,2]
[360941876,1747159856073,-400.0,0.00013972,2]
[360941877,1747159856083,-400.0,0.00013972,2]
[360941878,1747159856094,-480.04,0.00013972,2]
[360941879,1747159856104,-1118.01,0.00013972,2]
[360941880,1747159856113,-3035.07,0.00013972,2]
[360941881,1747159856123,-400.0,0.00013972,2]
[360941882,1747159856134,-400.0,0.00013972,2]
[360941883,1747159856145,-400.0,0.00013972,2]
[360941884,1747159856163,-409.40216688,0.00013972,2]
[360941885,1747159856173,-400.0,0.00013972,2]
[360941886,1747159856183,-3026.2,0.00013972,2]
[360941887,1747159856196,-400.0,0.00013972,2]
[360941888,1747159856206,-400.0,0.00013972,2]
[360941889,1747159856216,-400.0,0.00013972,2]
[360941890,1747159856226,-400.0,0.00013972,2]
[360941891,1747159856238,-1183.85,0.00013972,2]
[360941892,1747159856248,-3784.66,0.00013972,2]
[360941893,1747159856258,-1078.42,0.00013972,2]
[360941894,1747159856268,-3407.57,0.00013972,2]
[360941895,1747159856279,-7259.64,0.00013972,2]
[360941896,1747159856288,-400.0,0.00013972,2]
[360941897,1747159856299,-464.19,0.00013972,2]
[360941898,1747159856309,-954.1,0.00013972,2]
[360941899,1747159856319,-469.52,0.00013972,2]
[360941900,1747159856330,-1522.0,0.00013972,2]
[360941901,1747159856341,-6799.31,0.00013972,2]
[360941902,1747159856350,-400.0,0.00013972,2]
[360941903,1747159856361,-1614.68,0.00013972,2]
[360941904,1747159856371,-474.28,0.00013972,2]
[360941905,1747159856381,-3075.16,0.00013972,2]
[360941906,1747159856391,-400.0,0.00013972,2]
[360941907,1747159856402,-400.0,0.00013972,2]
[360941908,1747159856412,-400.0,0.00013972,2]
[360941909,1747159856423,-400.0,0.00013972,2]
[360941910,1747159856433,-644.66,0.00013972,2]
[360941911,1747159856444,-651.73,0.00013972,2]
[360941912,1747159856454,-400.0,0.00013972,2]
[360941913,1747159856463,-400.0,0.00013972,2]
[360941914,1747159856474,-1986.82,0.00013972,2]
[360941915,1747159856484,-628.26,0.00013972,2]
[360941916,1747159856494,-5419.72,0.00013972,2]
[360941917,1747159856504,-1214.8,0.00013972,2]
[360941918,1747159856514,-400.0,0.00013972,2]
[360941919,1747159856524,-485.4,0.00013972,2]
[360941920,1747159856534,-400.0,0.00013972,2]
[360941921,1747159856544,-1389.5,0.00013972,2]
[360941922,1747159856554,-400.0,0.00013972,2]
[360941923,1747159856564,-1353.16,0.00013972,2]
[360941924,1747159856574,-572.54,0.00013972,2]
[360941925,1747159856585,-400.0,0.00013972,2]
[360941926,1747159856596,-10972.26,0.00013972,2]
[360941927,1747159856607,-400.0,0.00013972,2]
[360941928,1747159856617,-600.0,0.00013972,2]
[360941929,1747159856627,-486.11,0.00013972,2]
[360941930,1747159856637,-400.0,0.00013972,2]
[360941931,1747159856648,-400.0,0.00013972,2]
[360941932,1747159856658,-4086.71,0.00013972,2]
[360941933,1747159856668,-400.0,0.00013972,2]
[360941934,1747159856678,-400.0,0.00013972,2]
[360941935,1747159856688,-802.33,0.00013972,2]
[360941936,1747159856699,-673.46,0.00013972,2]
[360941937,1747159856710,-400.0,0.00013972,2]
[360941938,1747159856720,-990.23,0.00013972,2]
[360941939,1747159856730,-1499.98,0.00013972,2]
[360941940,1747159856741,-400.0,0.00013972,2]
[360941941,1747159856753,-400.0,0.00013972,2]
[360941942,1747159856763,-1197.94,0.00013972,2]
[360941943,1747159856774,-1569.12,0.00013972,2]
[360941944,1747159856784,-400.0,0.00013972,2]
[360941945,1747159856795,-400.0,0.00013972,2]
[360941946,1747159856804,-400.0,0.00013972,2]
[360941947,1747159856814,-400.0,0.00013972,2]
[360941948,1747159856824,-967.33,0.00013972,2]
[360941949,1747159856833,-1366.56,0.00013972,2]
[360941950,1747159856844,-569.56,0.00013972,2]
[360941951,1747159856854,-500.0,0.00014,2]
[360941952,1747159856864,-500.0,0.00014,2]
[360941953,1747159856874,-1378.01447503,0.00014089,2]
[360941954,1747159856883,-17226.2669967,0.00014107,2]
[360941955,1747159856894,-1132.49994905,0.00014112,2]
[360941956,1747159856904,-587.0,0.00014146,2]
[360941957,1747159856915,-215.0738,0.00014195,2]
[360941958,1747159856926,-1730.0,0.000142,2]
[360941959,1747159856937,-799.9999999,0.0001422,2]
[360941960,1747159856948,-1997.4,0.00014246,2]
[360941961,1747159856958,-400.0,0.00014246,2]
[360941962,1747159856969,-400.0,0.00014246,2]
[360941963,1747159856979,-400.0,0.00014246,2]
[360941964,1747159856990,-400.0,0.00014246,2]
[360941965,1747159857000,-400.0,0.00014246,2]
[360941966,1747159857009,-400.0,0.00014246,2]
[360941967,1747159857019,-400.0,0.00014246,2]
[360941968,1747159857029,-691.65,0.00014246,2]
[360941969,1747159857040,-400.0,0.00014246,2]
[360941970,1747159857050,-400.0,0.00014246,2]
[360941971,1747159857061,-400.0,0.00014246,2]
[360941972,1747159857070,-400.0,0.00014246,2]
[360941973,1747159857080,-400.0,0.00014246,2]
[360941974,1747159857090,-400.0,0.00014246,2]
[360941975,1747159857100,-400.0,0.00014246,2]
[360941976,1747159857110,-400.0,0.00014246,2]
[360941977,1747159857120,-1429.32,0.00014246,2]
[360941978,1747159857131,-400.0,0.00014246,2]
[360941979,1747159857141,-400.0,0.00014246,2]
[360941980,1747159857152,-400.0,0.00014246,2]
[360941981,1747159857164,-400.0,0.00014246,2]
[360941982,1747159857174,-670.32,0.00014246,2]
[360941983,1747159857184,-400.0,0.00014246,2]
[360941984,1747159857194,-400.0,0.00014246,2]
[360941985,1747159857205,-629.54,0.00014246,2]
[360941986,1747159857219,-408.0,0.00014246,2]
[360941987,1747159857229,-634.83,0.00014246,2]
[360941988,1747159857240,-618.1,0.00014246,2]
[360941989,1747159857249,-400.0,0.00014246,2]
[360941990,1747159857259,-428.43,0.00014246,2]
[360941991,1747159857270,-400.0,0.00014246,2]
[360941992,1747159857279,-400.0,0.00014246,2]
[360941993,1747159857290,-810.0,0.00014246,2]
[360941994,1747159857300,-400.0,0.00014246,2]
[360941995,1747159857310,-400.0,0.00014246,2]
[360941996,1747159857320,-1415.53,0.00014246,2]
[360941997,1747159857330,-400.0,0.00014246,2]
[360941998,1747159857341,-400.0,0.00014246,2]
[360941999,1747159857351,-400.0,0.00014246,2]
[360942000,1747159857361,-400.0,0.00014246,2]
[360942001,1747159857372,-400.0,0.00014246,2]
[360942002,1747159857382,-400.0,0.00014246,2]
[360942003,1747159857392,-400.0,0.00014246,2]
[360942004,1747159857402,-400.0,0.00014246,2]
[360942005,1747159857412,-400.0,0.00014246,2]
[360942006,1747159857422,-400.0,0.00014246,2]
[360942007,1747159857432,-313.54027995,0.00014246,2]
[360942008,1747159857442,-400.0,0.00014246,2]
[360942009,1747159857452,-400.0,0.00014246,2]
[360942010,1747159857462,-400.0,0.00014246,2]
[360942011,1747159857472,-400.0,0.00014246,2]
[360942012,1747159857482,-400.0,0.00014246,2]
[360942013,1747159857492,-406.37,0.00014246,2]
[360942014,1747159857502,-486.49,0.00014246,2]
[360942015,1747159857512,-574.64,0.00014246,2]
[360942016,1747159857522,-400.0,0.00014246,2]
[360942017,1747159857531,-1944.55,0.00014246,2]
[360942018,1747159857542,-513.63,0.00014246,2]
[360942019,1747159857552,-420.13825127,0.00014246,2]
[360942020,1747159857562,-400.0,0.00014246,2]
[360942021,1747159857571,-400.0,0.00014246,2]
[360942022,1747159857580,-400.0,0.00014246,2]
[360942023,1747159857591,-400.0,0.00014246,2]
[360942024,1747159857600,-400.0,0.00014246,2]
[360942025,1747159857610,-400.0,0.00014246,2]
[360942026,1747159857619,-500.0,0.00014246,2]
[360942027,1747159857629,-400.0,0.00014246,2]
[360942028,1747159857638,-963.53,0.00014246,2]
[360942029,1747159857649,-416.47,0.00014246,2]
[360942030,1747159857658,-782.97,0.00014246,2]
[360942031,1747159857668,-400.0,0.00014246,2]
[360942032,1747159857678,-711.19,0.00014246,2]
[360942033,1747159857689,-740.94,0.00014246,2]
[360942034,1747159857700,-400.0,0.00014246,2]
[360942035,1747159857711,-400.0,0.00014246,2]
[360942036,1747159857721,-715.45,0.00014246,2]
[360942037,1747159857732,-400.0,0.00014246,2]
[360942038,1747159857742,-1199.22,0.00014246,2]
[360942039,1747159857752,-681.27,0.00014246,2]
[360942040,1747159857763,-400.0,0.00014246,2]
[360942041,1747159857773,-1101.03,0.00014246,2]
[360942042,1747159857783,-626.74,0.00014246,2]
[360942043,1747159857794,-400.0,0.00014246,2]
[360942044,1747159857805,-400.0,0.00014246,2]
[360942045,1747159857815,-210.76842155,0.00014246,2]
[360942046,1747159857825,-3119.8,0.00014246,2]
[360942047,1747159857835,-888.38,0.00014246,2]
[360942048,1747159857845,-408.23763842,0.00014246,2]
[360942049,1747159857855,-400.0,0.00014246,2]
[360942050,1747159857865,-803.4,0.00014246,2]
[360942051,1747159857875,-400.0,0.00014246,2]
[360942052,1747159857885,-400.0,0.00014246,2]
[360942053,1747159857897,-952.06,0.00014246,2]
[360942054,1747159857908,-400.0,0.00014246,2]
[360942055,1747159857919,-546.63,0.00014246,2]
[360942056,1747159857930,-400.0,0.00014246,2]
[360942057,1747159857940,-1864.64,0.00014246,2]
[360942058,1747159857951,-400.0,0.00014246,2]
[360942059,1747159857961,-400.0,0.00014246,2]
[360942060,1747159857971,-400.0,0.00014246,2]
[360942061,1747159857982,-400.0,0.00014246,2]
[360942062,1747159857993,-662.73,0.00014246,2]
[360942063,1747159858003,-2060.42,0.00014246,2]
[360942064,1747159858013,-400.0,0.00014246,2]
[360942065,1747159858024,-565.0,0.00014246,2]
[360942066,1747159858035,-400.0,0.00014246,2]
[360942067,1747159858045,-400.0,0.00014246,2]
[360942068,1747159858056,-440.79,0.00014246,2]
[360942069,1747159858066,-730.42,0.00014246,2]
[360942070,1747159858077,-596.05,0.00014246,2]
[360942071,1747159858087,-400.0,0.00014246,2]
[360942072,1747159858098,-186.37115305,0.00014246,2]
[360942073,1747159858108,-400.0,0.00014246,2]
[360942074,1747159858120,-400.0,0.00014246,2]
[360942075,1747159858131,-400.0,0.00014246,2]
[360942076,1747159858142,-1055.78,0.00014246,2]
[360942077,1747159858153,-642.18,0.00014246,2]
[360942078,1747159858165,-400.0,0.00014246,2]
[360942079,1747159858177,-864.57,0.00014246,2]
[360942080,1747159858187,-613.58,0.00014246,2]
[360942081,1747159858198,-400.0,0.00014246,2]
[360942082,1747159858209,-1185.94,0.00014246,2]
[360942083,1747159858219,-2299.68,0.00014246,2]
[360942084,1747159858230,-271.78455252,0.00014246,2]
[360942085,1747159858241,-400.0,0.00014246,2]
[360942086,1747159858252,-1286.3,0.00014246,2]
[360942087,1747159858263,-765.06,0.00014246,2]
[360942088,1747159858274,-436.26,0.00014246,2]
[360942089,1747159858285,-576.23,0.00014246,2]
[360942090,1747159858295,-1692.32,0.00014246,2]
[360942091,1747159858306,-691.36,0.00014246,2]
[360942092,1747159858317,-400.0,0.00014246,2]
[360942093,1747159858327,-400.0,0.00014246,2]
[360942094,1747159858338,-400.0,0.00014246,2]
[360942095,1747159858349,-400.0,0.00014246,2]
[360942096,1747159858359,-410.33,0.00014246,2]
[360942097,1747159858369,-584.48,0.00014246,2]
[360942098,1747159858380,-627.34,0.00014246,2]
[360942099,1747159858390,-4119.34,0.00014246,2]
[360942100,1747159858401,-1000.0,0.00014246,2]
[360942101,1747159858412,-400.0,0.00014246,2]
[360942102,1747159858422,-656.35,0.00014246,2]
[360942103,1747159858433,-400.0,0.00014246,2]
[360942104,1747159858444,-551.43,0.00014246,2]
[360942105,1747159858455,-962.51,0.00014246,2]
[360942106,1747159858465,-5645.08,0.00014246,2]
[360942107,1747159858475,-400.0,0.00014246,2]
[360942108,1747159858485,-488.73,0.00014246,2]
[360942109,1747159858496,-400.0,0.00014246,2]
[360942110,1747159858506,-400.0,0.00014246,2]
[360942111,1747159858517,-400.0,0.00014246,2]
[360942112,1747159858527,-4844.87,0.00014246,2]
[360942113,1747159858537,-575.46,0.00014246,2]
[360942114,1747159858547,-465.04,0.00014246,2]
[360942115,1747159858558,-400.0,0.00014246,2]
[360942116,1747159858567,-834.8,0.00014246,2]
[360942117,1747159858578,-400.0,0.00014246,2]
[360942118,1747159858588,-1188.41,0.00014246,2]
[360942119,1747159858599,-400.0,0.00014246,2]
[360942120,1747159858609,-400.0,0.00014246,2]
[360942121,1747159858619,-401.95818055,0.00014246,2]
[360942122,1747159858630,-668.66,0.00014246,2]
[360942123,1747159858640,-400.0,0.00014246,2]
[360942124,1747159858650,-625.36,0.00014246,2]
[360942125,1747159858660,-400.0,0.00014246,2]
[360942126,1747159858671,-400.0,0.00014246,2]
[360942127,1747159858681,-781.35,0.00014246,2]
[360942128,1747159858691,-400.0,0.00014246,2]
[360942129,1747159858701,-400.0,0.00014246,2]
[360942130,1747159858712,-400.0,0.00014246,2]
[360942131,1747159858722,-1914.81,0.00014246,2]
[360942132,1747159858732,-1766.41,0.00014246,2]
[360942133,1747159858742,-400.0,0.00014246,2]
[360942134,1747159858753,-536.58,0.00014246,2]
[360942135,1747159858763,-400.0,0.00014246,2]
[360942137,1747159858773,-400.0,0.00014246,2]
[360942139,1747159858783,-1145.96,0.00014246,2]
[360942142,1747159858794,-785.72,0.00014246,2]
[360942144,1747159858805,-400.0,0.00014246,2]
[360942146,1747159858815,-400.0,0.00014246,2]
[360942148,1747159858826,-459.45220028,0.00014246,2]
[360942150,1747159858836,-507.18,0.00014246,2]
[360942152,1747159858847,-1772.03,0.00014246,2]
[360942154,1747159858857,-400.0,0.00014246,2]
[360942156,1747159858867,-400.0,0.00014246,2]
[360942158,1747159858878,-701.6,0.00014246,2]
[360942160,1747159858887,-400.0,0.00014246,2]
[360942162,1747159858898,-400.0,0.00014246,2]
[360942164,1747159858908,-400.0,0.00014246,2]
[360942166,1747159858918,-531.59,0.00014246,2]
[360942168,1747159858928,-400.0,0.00014246,2]